fUST/lending_fUST_20250224
["ID","MTS","AMOUNT","RATE_DAILY","PERIOD"]
[354186425,1740337838234,-150.0,0.00013563,2]
[354186426,1740337838244,-42617.16894585,0.0001357,7]
[354186440,1740337840503,-50761.54118515,0.0001357,7]
[354186442,1740337840512,-164.78299957,0.00013596,2]
[354186444,1740337840522,-12924.89674434,0.0001369,2]
[354186446,1740337840531,-500.0,0.00013697,2]
[354186448,1740337840540,-500.0,0.00013697,2]
[354186450,1740337840550,-500.0,0.00013697,2]
[354186452,1740337840560,-396.42924679,0.00013697,2]
[354186454,1740337840569,-412.70718245,0.00013697,2]
[354186456,1740337840578,-569.53726686,0.00013698,2]
[354186458,1740337840587,-500.0,0.00013698,2]
[354186460,1740337840596,-521.6836215,0.00013698,2]
[354186462,1740337840605,-500.0,0.00013698,2]
[354186464,1740337840614,-500.0,0.00013698,2]
[354186466,1740337840623,-365.19142662,0.00013698,2]
[354186468,1740337840632,-500.0,0.00013698,2]
[354186470,1740337840641,-500.0,0.00013698,2]
[354186472,1740337840651,-500.0,0.00013698,2]
[354186474,1740337840660,-500.0,0.00013698,2]
[354186476,1740337840669,-500.0,0.00013698,2]
[354186478,1740337840678,-500.0,0.00013698,2]
[354186480,1740337840687,-500.0,0.00013698,2]
[354186482,1740337840696,-675.38,0.00013698,2]
[354186484,1740337840705,-500.0,0.00013698,2]
[354186486,1740337840714,-500.0,0.00013698,2]
[354186488,1740337840723,-500.0,0.00013698,2]
[354186490,1740337840732,-500.0,0.00013698,2]
[354186492,1740337840742,-500.0,0.00013698,2]
[354186494,1740337840751,-614.4,0.00013698,2]
[354186496,1740337840760,-500.0,0.00013698,2]
[354186498,1740337840770,-500.0,0.00013698,2]
[354186500,1740337840779,-500.0,0.00013698,2]
[354186502,1740337840788,-500.0,0.00013698,2]
[354186504,1740337840798,-500.0,0.00013698,2]
[354186506,1740337840807,-500.0,0.00013698,2]
[354186508,1740337840816,-500.0,0.00013698,2]
[354186510,1740337840825,-500.0,0.00013698,2]
[354186512,1740337840834,-500.0,0.00013698,2]
[354186514,1740337840843,-500.0,0.00013698,2]
[354186516,1740337840852,-555.63,0.00013698,2]
[354186518,1740337840861,-176.15205692,0.00013698,2]
[354186520,1740337840871,-241.2349005,0.00013698,2]
[354186522,1740337840880,-500.0,0.00013698,2]
[354186524,1740337840890,-500.0,0.00013698,2]
[354186526,1740337840899,-500.0,0.00013698,2]
[354186528,1740337840908,-500.0,0.00013698,2]
[354186530,1740337840919,-503.39658544,0.00013698,2]
[354186532,1740337840927,-500.0,0.00013698,2]
[354186534,1740337840936,-500.0,0.00013698,2]
[354186536,1740337840946,-500.0,0.00013698,2]
[354186538,1740337840955,-500.0,0.00013698,2]
[354186540,1740337840964,-1728.67,0.00013698,2]
[354186542,1740337840973,-4993.71,0.00013698,2]
[354186545,1740337840985,-500.0,0.00013698,2]
[354186547,1740337840994,-696.88,0.00013698,2]
[354186549,1740337841004,-500.0,0.00013698,2]
[354186551,1740337841013,-500.0,0.00013698,2]
[354186553,1740337841022,-571.08592663,0.00013698,2]
[354186555,1740337841031,-504.19683922,0.00013698,2]
[354186557,1740337841040,-500.0,0.00013698,2]
[354186559,1740337841049,-502.83001969,0.00013698,2]
[354186561,1740337841059,-500.0,0.00013698,2]
[354186563,1740337841068,-500.0,0.00013698,2]
[354186565,1740337841076,-500.0,0.00013698,2]
[354186567,1740337841086,-500.0,0.00013698,2]
[354186569,1740337841095,-500.0,0.00013698,2]
[354186571,1740337841104,-504.58369868,0.00013698,2]
[354186573,1740337841113,-500.0,0.00013698,2]
[354186575,1740337841122,-469.32389448,0.00013698,2]
[354186577,1740337841132,-500.0,0.00013698,2]
[354186579,1740337841141,-500.0,0.00013698,2]
[354186581,1740337841151,-500.0,0.00013698,2]
[354186583,1740337841159,-503.89853092,0.00013698,2]
[354186585,1740337841170,-625.31935806,0.00013698,2]
[354186587,1740337841184,-500.0,0.00013698,2]
[354186589,1740337841193,-500.0,0.00013698,2]
[354186590,1740337841202,-500.0,0.00013698,2]
[354186592,1740337841211,-214.61235689,0.00013698,2]
[354186594,1740337841220,-500.0,0.00013698,2]
[354186596,1740337841229,-500.0,0.00013698,2]
[354186598,1740337841238,-500.0,0.00013698,2]
[354186600,1740337841249,-506.46826415,0.00013698,2]
[354186602,1740337841258,-500.0,0.00013698,2]
[354186604,1740337841267,-1148.57,0.00013698,2]
[354186606,1740337841276,-500.0,0.00013698,2]
[354186607,1740337841286,-500.0,0.00013698,2]
[354186609,1740337841296,-732.96,0.00013698,2]
[354186611,1740337841304,-500.0,0.00013698,2]
[354186613,1740337841314,-506.35499529,0.00013698,2]
[354186615,1740337841323,-500.0,0.00013698,2]
[354186617,1740337841332,-500.0,0.00013698,2]
[354186619,1740337841342,-251.03731593,0.00013698,2]
[354186621,1740337841351,-500.0,0.00013698,2]
[354186623,1740337841360,-503.95333104,0.00013698,2]
[354186625,1740337841369,-500.0,0.00013698,2]
[354186627,1740337841378,-500.0,0.00013698,2]
[354186629,1740337841387,-500.0,0.00013698,2]
[354186631,1740337841397,-605.22,0.00013698,2]
[354186633,1740337841406,-1113.68,0.00013698,2]
[354186635,1740337841415,-338.40715389,0.00013698,2]
[354186637,1740337841425,-500.0,0.00013698,2]
[354186639,1740337841434,-500.0,0.00013698,2]
[354186641,1740337841443,-877.42,0.00013698,2]
[354186643,1740337841453,-500.0,0.00013698,2]
[354186645,1740337841462,-500.0,0.00013698,2]
[354186647,1740337841471,-500.0,0.00013698,2]
[354186649,1740337841480,-3008.55,0.00013698,2]
[354186651,1740337841489,-500.0,0.00013698,2]
[354186653,1740337841498,-4404.48,0.00013698,2]
[354186655,1740337841508,-500.0,0.00013698,2]
[354186657,1740337841517,-2070.13,0.00013698,2]
[354186659,1740337841526,-500.0,0.00013698,2]
[354186661,1740337841535,-500.0,0.00013698,2]
[354186663,1740337841544,-500.0,0.00013698,2]
[354186665,1740337841553,-503.73367373,0.00013698,2]
[354186667,1740337841562,-500.0,0.00013698,2]
[354186669,1740337841572,-12745.93,0.00013698,2]
[354186671,1740337841581,-500.0,0.00013698,2]
[354186673,1740337841590,-500.0,0.00013698,2]
[354186675,1740337841599,-1363.52,0.00013698,2]
[354186677,1740337841608,-500.0,0.00013698,2]
[354186679,1740337841617,-500.0,0.00013698,2]
[354186680,1740337841626,-505.15640973,0.00013698,2]
[354186682,1740337841635,-1041.57,0.00013698,2]
[354186684,1740337841644,-500.0,0.00013698,2]
[354186686,1740337841654,-500.0,0.00013698,2]
[354186688,1740337841663,-500.0,0.00013698,2]
[354186690,1740337841672,-500.0,0.00013698,2]
[354186692,1740337841681,-500.0,0.00013698,2]
[354186694,1740337841691,-500.0,0.00013698,2]
[354186696,1740337841699,-500.0,0.00013698,2]
[354186698,1740337841709,-500.0,0.00013698,2]
[354186700,1740337841718,-500.0,0.00013698,2]
[354186702,1740337841727,-500.0,0.00013698,2]
[354186704,1740337841736,-500.0,0.00013698,2]
[354186706,1740337841746,-500.0,0.00013698,2]
[354186708,1740337841755,-501.70147739,0.00013698,2]
[354186710,1740337841764,-500.0,0.00013698,2]
[354186712,1740337841773,-500.0,0.00013698,2]
[354186714,1740337841783,-500.0,0.00013698,2]
[354186716,1740337841792,-500.0,0.00013698,2]
[354186718,1740337841801,-826.52,0.00013698,2]
[354186720,1740337841810,-500.0,0.00013698,2]
[354186722,1740337841819,-500.0,0.00013698,2]
[354186724,1740337841828,-161.414143,0.0001372,5]
[354186726,1740337841837,-12332.37625363,0.00013721,2]
[354186728,1740337841846,-161.414143,0.00013729,4]
[354186730,1740337841855,-500.0,0.00013779,2]
[354186732,1740337841864,-500.0,0.00013779,2]
[354186734,1740337841873,-500.0,0.0001378,2]
[354186736,1740337841882,-500.0,0.0001378,2]
[354186738,1740337841891,-500.0,0.0001378,2]
[354186740,1740337841900,-675.38,0.0001378,2]
[354186742,1740337841909,-500.0,0.0001378,2]
[354186744,1740337841919,-500.0,0.0001378,2]
[354186746,1740337841927,-500.0,0.0001378,2]
[354186748,1740337841937,-500.0,0.0001378,2]
[354186750,1740337841945,-641.74,0.0001378,2]
[354186752,1740337841954,-500.0,0.0001378,2]
[354186754,1740337841963,-500.0,0.0001378,2]
[354186756,1740337841972,-500.0,0.0001378,2]
[354186758,1740337841981,-500.0,0.0001378,2]
[354186760,1740337841990,-555.63,0.0001378,2]
[354186761,1740337841999,-500.0,0.0001378,2]
[354186763,1740337842008,-500.0,0.0001378,2]
[354186765,1740337842017,-500.0,0.0001378,2]
[354186767,1740337842026,-500.0,0.0001378,2]
[354186769,1740337842036,-500.0,0.0001378,2]
[354186771,1740337842045,-500.0,0.0001378,2]
[354186773,1740337842055,-500.0,0.0001378,2]
[354186775,1740337842065,-1728.67,0.0001378,2]
[354186777,1740337842074,-4993.71,0.0001378,2]
[354186779,1740337842083,-696.88,0.0001378,2]
[354186781,1740337842093,-500.0,0.0001378,2]
[354186784,1740337842105,-500.0,0.0001378,2]
[354186786,1740337842114,-500.0,0.0001378,2]
[354186788,1740337842123,-500.0,0.0001378,2]
[354186790,1740337842132,-500.0,0.0001378,2]
[354186791,1740337842142,-500.0,0.0001378,2]
[354186793,1740337842152,-500.0,0.0001378,2]
[354186795,1740337842161,-500.0,0.0001378,2]
[354186797,1740337842170,-500.0,0.0001378,2]
[354186799,1740337842184,-500.0,0.0001378,2]
[354186801,1740337842193,-500.0,0.0001378,2]
[354186803,1740337842203,-500.0,0.0001378,2]
[354186805,1740337842212,-500.0,0.0001378,2]
[354186807,1740337842223,-546.97640634,0.0001378,2]
[354186810,1740337842234,-500.0,0.0001378,2]
[354186811,1740337842243,-1148.57,0.0001378,2]
[354186813,1740337842252,-500.0,0.0001378,2]
[354186815,1740337842261,-500.0,0.0001378,2]
[354186817,1740337842270,-732.96,0.0001378,2]
[354186819,1740337842280,-500.0,0.0001378,2]
[354186822,1740337842290,-500.0,0.0001378,2]
[354186823,1740337842299,-202.12592678,0.0001378,2]
[354186827,1740337842391,-500.0,0.0001378,2]
[354186828,1740337842401,-605.22,0.0001378,2]
[354186829,1740337842411,-1113.68,0.0001378,2]
[354186830,1740337842421,-500.0,0.0001378,2]
[354186831,1740337842430,-877.42,0.0001378,2]
[354186832,1740337842440,-500.0,0.0001378,2]
[354186833,1740337842449,-500.0,0.0001378,2]
[354186834,1740337842459,-3008.55,0.0001378,2]
[354186835,1740337842469,-500.0,0.0001378,2]
[354186837,1740337842478,-4404.48,0.0001378,2]
[354186839,1740337842487,-500.0,0.0001378,2]
[354186841,1740337842496,-2070.13,0.0001378,2]
[354186843,1740337842506,-500.0,0.0001378,2]
[354186845,1740337842515,-500.0,0.0001378,2]
[354186846,1740337842524,-167.37,0.0001378,2]
[354186848,1740337842533,-500.0,0.0001378,2]
[354186850,1740337842543,-209.7319382,0.0001378,2]
[354186852,1740337842552,-12745.93,0.0001378,2]
[354186854,1740337842562,-500.0,0.0001378,2]
[354186856,1740337842571,-1363.52,0.0001378,2]
[354186858,1740337842580,-1041.57,0.0001378,2]
[354186861,1740337842590,-500.0,0.0001378,2]
[354186863,1740337842599,-500.0,0.0001378,2]
[354186865,1740337842609,-500.0,0.0001378,2]
[354186866,1740337842618,-500.0,0.0001378,2]
[354186868,1740337842627,-500.0,0.0001378,2]
[354186871,1740337842637,-533.3,0.0001378,2]
[354186873,1740337842646,-500.0,0.0001378,2]
[354186875,1740337842656,-500.0,0.0001378,2]
[354186877,1740337842665,-500.0,0.0001378,2]
[354186878,1740337842674,-500.0,0.0001378,2]
[354186880,1740337842683,-500.0,0.0001378,2]
[354186882,1740337842693,-500.0,0.0001378,2]
[354186884,1740337842702,-500.0,0.0001378,2]
[354186886,1740337842712,-826.52,0.0001378,2]
[354186888,1740337842721,-3000.0,0.000138,2]
[354186890,1740337842731,-231.609,0.000138,2]
[354186893,1740337842741,-420.0,0.00013831,2]
[354186895,1740337842750,-500.0,0.00013862,2]
[354186897,1740337842759,-500.0,0.00013863,2]
[354186899,1740337842769,-500.0,0.00013863,2]
[354186901,1740337842778,-156.28,0.00013863,2]
[354186903,1740337842788,-675.38,0.00013863,2]
[354186905,1740337842797,-500.0,0.00013863,2]
[354186907,1740337842806,-500.0,0.00013863,2]
[354186909,1740337842816,-500.0,0.00013863,2]
[354186911,1740337842826,-304.24370059,0.00013863,2]
[354186913,1740337842835,-500.0,0.00013863,2]
[354186915,1740337842844,-555.63,0.00013863,2]
[354186917,1740337842854,-500.0,0.00013863,2]
[354186919,1740337842863,-500.0,0.00013863,2]
[354186921,1740337842872,-500.0,0.00013863,2]
[354186923,1740337842881,-1728.67,0.00013863,2]
[354186925,1740337842891,-4993.71,0.00013863,2]
[354186926,1740337842900,-696.88,0.00013863,2]
[354186928,1740337842909,-500.0,0.00013863,2]
[354186930,1740337842919,-500.0,0.00013863,2]
[354186932,1740337842929,-500.0,0.00013863,2]
[354186934,1740337842938,-500.0,0.00013863,2]
[354186936,1740337842948,-331.65,0.00013863,2]
[354186938,1740337842957,-500.0,0.00013863,2]
[354186940,1740337842966,-500.0,0.00013863,2]
[354186942,1740337842975,-500.0,0.00013863,2]
[354186944,1740337842985,-500.0,0.00013863,2]
[354186946,1740337842995,-1148.57,0.00013863,2]
[354186948,1740337843004,-500.0,0.00013863,2]
[354186950,1740337843012,-500.0,0.00013863,2]
[354186952,1740337843022,-732.96,0.00013863,2]
[354186954,1740337843031,-500.0,0.00013863,2]
[354186956,1740337843040,-500.0,0.00013863,2]
[354186959,1740337843050,-500.0,0.00013863,2]
[354186961,1740337843059,-1113.68,0.00013863,2]
[354186963,1740337843069,-605.22,0.00013863,2]
[354186965,1740337843078,-500.0,0.00013863,2]
[354186967,1740337843087,-877.42,0.00013863,2]
[354186969,1740337843096,-500.0,0.00013863,2]
[354186971,1740337843106,-500.0,0.00013863,2]
[354186973,1740337843115,-3008.55,0.00013863,2]
[354186974,1740337843124,-507.25283716,0.00013863,2]
[354186976,1740337843133,-4404.48,0.00013863,2]
[354186978,1740337843143,-2070.13,0.00013863,2]
[354186980,1740337843151,-500.0,0.00013863,2]
[354186982,1740337843161,-507.96266534,0.00013863,2]
[354186984,1740337843170,-500.0,0.00013863,2]
[354186986,1740337843182,-12745.93,0.00013863,2]
[354186988,1740337843192,-500.0,0.00013863,2]
[354186990,1740337843201,-1363.52,0.00013863,2]
[354186992,1740337843210,-1041.57,0.00013863,2]
[354186994,1740337843219,-500.0,0.00013863,2]
[354186996,1740337843228,-500.0,0.00013863,2]
[354186998,1740337843237,-500.0,0.00013863,2]
[354187000,1740337843246,-500.0,0.00013863,2]
[354187002,1740337843255,-500.0,0.00013863,2]
[354187004,1740337843263,-500.0,0.00013863,2]
[354187006,1740337843272,-500.0,0.00013863,2]
[354187008,1740337843282,-575.39076428,0.00013863,2]
[354187010,1740337843291,-500.0,0.00013863,2]
[354187012,1740337843300,-500.0,0.00013863,2]
[354187014,1740337843309,-500.0,0.00013863,2]
[354187016,1740337843318,-826.52,0.00013863,2]
[354187018,1740337843327,-151.0,0.000139,2]
[354187020,1740337843336,-151.0,0.000139,2]
[354187022,1740337843345,-151.0,0.000139,2]
[354187024,1740337843354,-168.13888515,0.000139,2]
[354187026,1740337843363,-168.13888515,0.000139,2]
[354187028,1740337843372,-168.13888515,0.000139,2]
[354187030,1740337843381,-168.13888515,0.000139,2]
[354187032,1740337843390,-168.13888515,0.000139,2]
[354187034,1740337843399,-168.13888515,0.000139,2]
[354187036,1740337843408,-168.13,0.000139,2]
[354187038,1740337843418,-152.57046986,0.000139,2]
[354187040,1740337843427,-152.57046986,0.000139,2]
[354187042,1740337843436,-152.57046986,0.000139,2]
[354187044,1740337843445,-152.57046986,0.000139,2]
[354187046,1740337843454,-152.57046986,0.000139,2]
[354187048,1740337843463,-152.57046986,0.000139,2]
[354187050,1740337843473,-152.57046986,0.000139,2]
[354187052,1740337843481,-152.57046986,0.000139,2]
[354187054,1740337843490,-152.57046986,0.000139,2]
[354187056,1740337843499,-152.57046986,0.000139,2]
[354187058,1740337843509,-152.57046986,0.000139,2]
[354187060,1740337843518,-152.57046986,0.000139,2]
[354187062,1740337843527,-152.57046986,0.000139,2]
[354187064,1740337843537,-152.57046986,0.000139,2]
[354187066,1740337843545,-152.57046986,0.000139,2]
[354187068,1740337843554,-152.57046986,0.000139,2]
[354187070,1740337843563,-152.57046986,0.000139,2]
[354187072,1740337843572,-152.57,0.000139,2]
[354187074,1740337843581,-154.60409759,0.000139,2]
[354187076,1740337843590,-154.60409759,0.000139,2]
[354187078,1740337843599,-154.60409759,0.000139,2]
[354187080,1740337843608,-154.60409759,0.000139,2]
[354187082,1740337843617,-154.60409759,0.000139,2]
[354187084,1740337843626,-154.60409759,0.000139,2]
[354187086,1740337843635,-154.60409759,0.000139,2]
[354187088,1740337843644,-154.60409759,0.000139,2]
[354187090,1740337843654,-154.60409759,0.000139,2]
[354187092,1740337843663,-154.60409759,0.000139,2]
[354187094,1740337843672,-154.60409759,0.000139,2]
[354187096,1740337843681,-154.60409759,0.000139,2]
[354187098,1740337843690,-154.60409759,0.000139,2]
[354187099,1740337843699,-154.6,0.000139,2]
[354187102,1740337843710,-252.52002606,0.000139,2]
[354187103,1740337843720,-252.52002606,0.000139,2]
[354187106,1740337843729,-252.52002606,0.000139,2]
[354187108,1740337843739,-252.52002606,0.000139,2]
[354187110,1740337843749,-252.52002606,0.000139,2]
[354187112,1740337843758,-252.52002606,0.000139,2]
[354187114,1740337843767,-252.52002606,0.000139,2]
[354187116,1740337843776,-252.52002606,0.000139,2]
[354187117,1740337843785,-252.52002606,0.000139,2]
[354187119,1740337843794,-252.52002606,0.000139,2]
[354187121,1740337843803,-252.52002606,0.000139,2]
[354187123,1740337843813,-252.52002606,0.000139,2]
[354187125,1740337843822,-252.52002606,0.000139,2]
[354187127,1740337843832,-252.52002606,0.000139,2]
[354187129,1740337843841,-252.52002606,0.000139,2]
[354187131,1740337843850,-252.52002606,0.000139,2]
[354187133,1740337843860,-252.52002606,0.000139,2]
[354187135,1740337843869,-252.52002606,0.000139,2]
[354187137,1740337843878,-252.52002606,0.000139,2]
[354187139,1740337843887,-252.52,0.000139,2]
[354187141,1740337843897,-164.78299957,0.000139,2]
[354187143,1740337843906,-3176.33183461,0.000139,2]
[354187145,1740337843915,-323.0,0.0001394,2]
[354187147,1740337843925,-500.0,0.00013943,2]
[354187149,1740337843935,-500.0,0.00013944,2]
[354187151,1740337843944,-500.0,0.00013945,2]
[354187153,1740337843953,-500.0,0.00013945,2]
[354187155,1740337843962,-675.38,0.00013945,2]
[354187158,1740337843971,-500.0,0.00013945,2]
[354187160,1740337843981,-500.0,0.00013945,2]
[354187162,1740337843990,-500.0,0.00013945,2]
[354187164,1740337843999,-555.63,0.00013945,2]
[354187165,1740337844008,-500.0,0.00013945,2]
[354187167,1740337844018,-500.0,0.00013945,2]
[354187169,1740337844027,-1728.67,0.00013945,2]
[354187171,1740337844036,-4993.71,0.00013945,2]
[354187173,1740337844047,-696.88,0.00013945,2]
[354187175,1740337844057,-500.0,0.00013945,2]
[354187177,1740337844065,-500.0,0.00013945,2]
[354187179,1740337844074,-500.0,0.00013945,2]
[354187181,1740337844083,-500.0,0.00013945,2]
[354187183,1740337844093,-500.0,0.00013945,2]
[354187185,1740337844102,-500.0,0.00013945,2]
[354187187,1740337844111,-1148.57,0.00013945,2]
[354187189,1740337844120,-500.0,0.00013945,2]
[354187191,1740337844130,-732.96,0.00013945,2]
[354187193,1740337844139,-500.0,0.00013945,2]
[354187195,1740337844149,-500.0,0.00013945,2]
[354187197,1740337844159,-500.0,0.00013945,2]
[354187199,1740337844168,-1113.68,0.00013945,2]
[354187201,1740337844178,-605.22,0.00013945,2]
[354187203,1740337844187,-641.26,0.00013945,2]
[354187204,1740337844198,-877.42,0.00013945,2]
[354187205,1740337844207,-500.0,0.00013945,2]
[354187206,1740337844216,-500.0,0.00013945,2]
[354187207,1740337844225,-3008.55,0.00013945,2]
[354187208,1740337844234,-4404.48,0.00013945,2]
[354187209,1740337844243,-2070.13,0.00013945,2]
[354187210,1740337844252,-500.0,0.00013945,2]
[354187211,1740337844261,-500.0,0.00013945,2]
[354187212,1740337844270,-12745.93,0.00013945,2]
[354187213,1740337844279,-500.0,0.00013945,2]
[354187216,1740337844353,-1363.52,0.00013945,2]
[354187218,1740337844369,-1041.57,0.00013945,2]
[354187220,1740337844379,-500.0,0.00013945,2]
[354187222,1740337844387,-500.0,0.00013945,2]
[354187224,1740337844397,-362.65,0.00013945,2]
[354187226,1740337844406,-500.0,0.00013945,2]
[354187228,1740337844415,-500.0,0.00013945,2]
[354187230,1740337844423,-500.0,0.00013945,2]
[354187232,1740337844432,-500.0,0.00013945,2]
[354187234,1740337844442,-500.0,0.00013945,2]
[354187236,1740337844451,-500.0,0.00013945,2]
[354187237,1740337844460,-826.52,0.00013945,2]
[354187239,1740337844470,-2000.0,0.0001395,2]
[354187241,1740337844479,-500.0,0.00013973,2]
[354187243,1740337844489,-500.0,0.00013973,2]
[354187245,1740337844498,-237.90476766,0.00013973,2]
[354187248,1740337844508,-268.25898527,0.00013973,2]
[354187250,1740337844517,-166.0,0.00013986,2]
[354187252,1740337844527,-166.0,0.00013986,2]
[354187254,1740337844535,-166.0,0.00013986,2]
[354187256,1740337844545,-252.0,0.00013986,2]
[354187258,1740337844554,-500.0,0.00013998,2]
[354187260,1740337844563,-500.0,0.00013998,2]
[354187262,1740337844573,-208.4530523,0.00013998,2]
[354187264,1740337844583,-500.0,0.00013998,2]
[354187266,1740337844592,-500.0,0.00013998,2]
[354187268,1740337844601,-387.09124632,0.00013998,2]
[354187270,1740337844610,-500.0,0.00013999,2]
[354187272,1740337844619,-500.0,0.00013999,2]
[354187274,1740337844628,-500.0,0.00013999,2]
[354187276,1740337844638,-500.0,0.00013999,2]
[354187278,1740337844647,-500.0,0.00013999,2]
[354187280,1740337844656,-500.0,0.00013999,2]
[354187282,1740337844666,-500.0,0.00013999,2]
[354187284,1740337844676,-500.0,0.00013999,2]
[354187286,1740337844685,-500.0,0.00013999,2]
[354187288,1740337844694,-500.0,0.00013999,2]
[354187290,1740337844703,-500.0,0.00013999,2]
[354187292,1740337844712,-500.0,0.00013999,2]
[354187294,1740337844721,-500.0,0.00013999,2]
[354187296,1740337844730,-500.0,0.00013999,2]
[354187298,1740337844739,-423.15,0.00013999,2]
[354187300,1740337844748,-96443.92425058,0.00014,5]
[354187302,1740337844758,-10189.44703375,0.00014,5]
[354187304,1740337844766,-1349213.36634553,0.00014,5]
[354187324,1740337846286,-1043.93,0.00013698,2]
[354187325,1740337846298,-500.0,0.00013698,2]
[354187326,1740337846310,-500.0,0.00013698,2]
[354187327,1740337846322,-632.96999995,0.0001378,2]
[354187335,1740338880896,177.171287,9.041e-05,2]
[354187339,1740338909308,1119.16123286,0.00018249,90]
[354187362,1740339032642,-200.0,0.0001266,2]
[354187364,1740339032652,-600.0,0.00012664,2]
[354187365,1740339032662,-300.0,0.00012672,2]
[354187367,1740339032671,-11677.74366287,0.00012673,2]
[354187370,1740339032750,-1930.04,0.00012673,2]
[354187403,1740339038257,-11292.21633713,0.00012673,2]
[354187405,1740339038266,-162.30173713,0.00013573,2]
[354187407,1740339038275,-150.0,0.00013593,2]
[354187409,1740339038284,-164.78299957,0.00013598,2]
[354187411,1740339038295,-502.38399481,0.00013673,2]
[354187413,1740339038306,-500.0,0.00013673,2]
[354187415,1740339038315,-500.0,0.00013673,2]
[354187417,1740339038324,-500.0,0.00013673,2]
[354187419,1740339038334,-500.64646587,0.00013673,2]
[354187421,1740339038343,-190.76057223,0.00013673,2]
[354187423,1740339038352,-500.0,0.00013673,2]
[354187425,1740339038361,-500.0,0.00013673,2]
[354187427,1740339038371,-501.14429813,0.00013673,2]
[354187429,1740339038381,-500.0,0.00013673,2]
[354187431,1740339038390,-500.720821,0.00013673,2]
[354187433,1740339038399,-507.84331599,0.00013673,2]
[354187435,1740339038408,-5404.04295276,0.00013692,2]
[354187437,1740339038420,-5764.31384136,0.00013692,2]
[354187440,1740339038434,-1756.53995022,0.00013692,2]
[354187442,1740339038448,-200.7597062,0.00013697,2]
[354187445,1740339038461,-511.09905613,0.00013697,2]
[354187447,1740339038473,-500.0,0.00013697,2]
[354187449,1740339038486,-338.97040883,0.00013697,2]
[354187452,1740339038497,-274.715178,0.00013697,2]
[354187453,1740339038507,-500.0,0.00013697,2]
[354187455,1740339038520,-340.30425554,0.00013698,2]
[354187457,1740339038535,-159.69574446,0.00013698,2]
[354187459,1740339038546,-305.27225455,0.00013698,2]
[354187476,1740339040518,-194.72774545,0.00013698,2]
[354187477,1740339040528,-500.0,0.00013698,2]
[354187478,1740339040538,-500.0,0.00013698,2]
[354187479,1740339040549,-500.0,0.00013698,2]
[354187480,1740339040559,-500.0,0.00013698,2]
[354187481,1740339040570,-500.0,0.00013698,2]
[354187482,1740339040582,-517.982789,0.00013698,2]
[354187483,1740339040592,-500.0,0.00013698,2]
[354187484,1740339040603,-328.53841355,0.00013698,2]
[354187485,1740339040612,-500.0,0.00013698,2]
[354187486,1740339040628,-500.0,0.00013698,2]
[354187487,1740339040653,-500.0,0.00013698,2]
[354187488,1740339040666,-500.0,0.00013698,2]
[354187490,1740339040680,-500.0,0.00013698,2]
[354187492,1740339040692,-500.0,0.00013698,2]
[354187494,1740339040705,-500.0,0.00013698,2]